lending/lending_fUSD_20250122
["ID","MTS","AMOUNT","RATE_DAILY","PERIOD"]
[349952289,1737534636013,-783.63,0.00019447,2]
[349952290,1737534636023,-785.43,0.00019447,2]
[349952291,1737534636032,-500.0,0.00019447,2]
[349952292,1737534636042,-665.31,0.00019447,2]
[349952293,1737534636051,-1768.25,0.00019447,2]
[349952294,1737534636060,-500.0,0.00019447,2]
[349952295,1737534636069,-821.28,0.00019447,2]
[349952296,1737534636078,-1086.52,0.00019447,2]
[349952297,1737534636087,-500.0,0.00019447,2]
[349952298,1737534636096,-500.0,0.00019447,2]
[349952299,1737534636106,-587.54,0.00019447,2]
[349952300,1737534636115,-583.26,0.00019447,2]
[349952301,1737534636124,-551.1,0.00019447,2]
[349952302,1737534636133,-500.0,0.00019447,2]
[349952303,1737534636143,-1882.75,0.00019447,2]
[349952304,1737534636152,-503.61004599,0.00019447,2]
[349952305,1737534636162,-1838.57,0.00019447,2]
[349952306,1737534636171,-60957.33765391,0.00019447,2]
[349952314,1737534637971,-500.0,0.00019446,2]
[349952315,1737534637982,-500.0,0.00019446,2]
[349952316,1737534637991,-500.0,0.00019446,2]
[349952317,1737534638001,-500.0,0.00019446,2]
[349952318,1737534638011,-589.48,0.00019446,2]
[349952319,1737534638020,-500.0,0.00019447,2]
[349952320,1737534638029,-500.0,0.00019447,2]
[349952321,1737534638038,-500.0,0.00019447,2]
[349952322,1737534638048,-1465.82074524,0.00019447,2]
[349952323,1737534638238,-317.69166302,0.00019447,2]
[349952324,1737534638254,-434.33226409,0.00019447,2]
[349952325,1737534638266,-1734.55481117,0.00019447,2]
[349952326,1737534638285,-2323.49265339,0.00019447,2]
[349952472,1737534640056,-500.0,0.00019446,2]
[349952473,1737534640067,-548.0,0.00019446,2]
[349952474,1737534640079,-3469.44,0.00019446,2]
[349952475,1737534640089,-519.18383517,0.00019446,2]
[349952476,1737534640107,-1906.20616483,0.00019446,2]
[349952477,1737534640116,-20030.56680101,0.00019447,2]
[349952478,1737534640217,-15885.14098606,0.00019447,2]
[349952479,1737534640227,-500.0,0.00019448,2]
[349952480,1737534640238,-500.0,0.00019448,2]
[349952481,1737534640247,-500.0,0.00019448,2]
[349952482,1737534640257,-500.0,0.00019448,2]
[349952483,1737534640267,-500.0,0.00019448,2]
[349952484,1737534640277,-500.0,0.00019448,2]
[349952485,1737534640287,-500.0,0.00019448,2]
[349952486,1737534640296,-500.0,0.00019448,2]
[349952487,1737534640306,-500.0,0.00019448,2]
[349952488,1737534640315,-500.0,0.00019448,2]
[349952489,1737534640326,-500.0,0.00019448,2]
[349952490,1737534640335,-500.0,0.00019448,2]
[349952491,1737534640345,-539.94308778,0.00019448,2]
[349952492,1737534640355,-500.0,0.00019448,2]
[349952493,1737534640365,-500.0,0.00019448,2]
[349952494,1737534640373,-500.0,0.00019448,2]
[349952495,1737534640383,-500.0,0.00019448,2]
[349952496,1737534640393,-500.0,0.00019448,2]
[349952497,1737534640402,-500.0,0.00019448,2]
[349952498,1737534640413,-722.82,0.00019448,2]
[349952499,1737534640422,-500.0,0.00019448,2]
[349952500,1737534640431,-173.66822742,0.00019448,2]
[349952501,1737534640440,-500.0,0.00019448,2]
[349952502,1737534640450,-1357.12,0.00019448,2]
[349952503,1737534640459,-628.45,0.00019448,2]
[349952504,1737534640468,-846.46,0.00019448,2]
[349952505,1737534640477,-751.94,0.00019448,2]
[349952506,1737534640487,-500.0,0.00019448,2]
[349952507,1737534640496,-500.0,0.00019448,2]
[349952508,1737534640507,-500.0,0.00019448,2]
[349952509,1737534640520,-1535.03,0.00019448,2]
[349952510,1737534640530,-500.0,0.00019448,2]
[349952511,1737534640539,-1286.53,0.00019448,2]
[349952512,1737534640549,-1081.56,0.00019448,2]
[349952513,1737534640560,-500.0,0.00019448,2]
[349952514,1737534640569,-500.0,0.00019448,2]
[349952515,1737534640579,-500.0,0.00019448,2]
[349952516,1737534640590,-904.23,0.00019448,2]
[349952517,1737534640599,-500.0,0.00019448,2]
[349952518,1737534640608,-500.0,0.00019448,2]
[349952519,1737534640618,-500.0,0.00019448,2]
[349952520,1737534640627,-500.0,0.00019448,2]
[349952521,1737534640636,-500.0,0.00019448,2]
[349952522,1737534640646,-2242.40864827,0.0001952,2]
[349952523,1737534640657,-1545.73220754,0.0001952,2]
[349952524,1737534640666,-1860.1211,0.0001962,2]
[349952525,1737534640675,-1327.8094939,0.00019668,2]
[349952526,1737534640684,-3000.0,0.0001967,2]
[349952527,1737534640694,-2242.40864827,0.00019692,2]
[349952528,1737534640703,-1545.73220754,0.00019693,2]
[349952529,1737534640712,-500.0,0.0001972,2]
[349952530,1737534640722,-500.0,0.0001972,2]
[349952531,1737534640731,-500.0,0.0001972,2]
[349952532,1737534640741,-500.0,0.0001972,2]
[349952533,1737534640751,-500.0,0.0001972,2]
[349952534,1737534640760,-500.0,0.0001972,2]
[349952535,1737534640770,-500.0,0.0001972,2]
[349952536,1737534640779,-468.20476881,0.0001972,2]
[349952537,1737534640788,-500.0,0.0001972,2]
[349952538,1737534640798,-500.0,0.0001972,2]
[349952539,1737534640807,-500.0,0.0001972,2]
[349952540,1737534640816,-503.79,0.0001972,2]
[349952541,1737534640826,-500.0,0.0001972,2]
[349952542,1737534640835,-500.0,0.0001972,2]
[349952543,1737534640844,-500.0,0.0001972,2]
[349952544,1737534640853,-500.0,0.0001972,2]
[349952545,1737534640862,-200.0,0.0001972,2]
[349952546,1737534640871,-500.0,0.0001972,2]
[349952547,1737534640879,-500.0,0.0001972,2]
[349952548,1737534640888,-500.0,0.0001972,2]
[349952549,1737534640897,-500.0,0.0001972,2]
[349952550,1737534640906,-500.0,0.0001972,2]
[349952551,1737534640915,-500.0,0.0001972,2]
[349952552,1737534640924,-500.0,0.0001972,2]
[349952553,1737534640933,-852.68,0.0001972,2]
[349952554,1737534640941,-500.0,0.0001972,2]
[349952555,1737534640951,-500.0,0.0001972,2]
[349952556,1737534640960,-500.0,0.0001972,2]
[349952557,1737534640968,-500.0,0.0001972,2]
[349952558,1737534640978,-500.0,0.0001972,2]
[349952559,1737534640987,-500.0,0.0001972,2]
[349952560,1737534640996,-500.0,0.0001972,2]
[349952561,1737534641006,-500.0,0.0001972,2]
[349952562,1737534641016,-500.0,0.0001972,2]
[349952563,1737534641025,-500.0,0.0001972,2]
[349952564,1737534641035,-500.0,0.0001972,2]
[349952565,1737534641044,-500.0,0.0001972,2]
[349952566,1737534641054,-500.0,0.0001972,2]
[349952567,1737534641066,-500.0,0.0001972,2]
[349952568,1737534641076,-500.0,0.0001972,2]
[349952569,1737534641087,-532.20044612,0.0001972,2]
[349952570,1737534641097,-602.67,0.0001972,2]
[349952571,1737534641106,-500.0,0.0001972,2]
[349952572,1737534641116,-500.0,0.0001972,2]
[349952573,1737534641126,-500.0,0.0001972,2]
[349952574,1737534641135,-500.0,0.0001972,2]
[349952575,1737534641144,-500.0,0.0001972,2]
[349952576,1737534641153,-500.0,0.0001972,2]
[349952577,1737534641164,-395.9583627,0.0001972,2]
[349952578,1737534641173,-500.0,0.0001972,2]
[349952579,1737534641182,-500.0,0.0001972,2]
[349952580,1737534641192,-500.0,0.0001972,2]
[349952581,1737534641202,-500.0,0.0001972,2]
[349952582,1737534641211,-500.0,0.0001972,2]
[349952583,1737534641221,-500.0,0.0001972,2]
[349952584,1737534641230,-500.0,0.0001972,2]
[349952585,1737534641240,-500.0,0.0001972,2]
[349952586,1737534641249,-500.0,0.0001972,2]
[349952587,1737534641258,-500.0,0.0001972,2]
[349952588,1737534641268,-500.0,0.0001972,2]
[349952589,1737534641277,-500.0,0.0001972,2]
[349952590,1737534641287,-647.65,0.0001972,2]
[349952591,1737534641297,-500.0,0.0001972,2]
[349952592,1737534641306,-500.0,0.0001972,2]
[349952593,1737534641315,-500.0,0.0001972,2]
[349952594,1737534641325,-500.0,0.0001972,2]
[349952595,1737534641335,-500.0,0.0001972,2]
[349952596,1737534641345,-500.0,0.0001972,2]
[349952597,1737534641355,-687.02,0.0001972,2]
[349952598,1737534641364,-500.8268813,0.0001972,2]
[349952599,1737534641373,-500.0,0.0001972,2]
[349952600,1737534641383,-502.91188714,0.0001972,2]
[349952601,1737534641392,-500.0,0.0001972,2]
[349952602,1737534641402,-500.0,0.0001972,2]
[349952603,1737534641414,-500.0,0.0001972,2]
[349952604,1737534641424,-500.0,0.0001972,2]
[349952605,1737534641433,-441.21609009,0.0001972,2]
[349952606,1737534641442,-500.0,0.0001972,2]
[349952607,1737534641452,-500.0,0.0001972,2]
[349952608,1737534641462,-500.0,0.0001972,2]
[349952609,1737534641471,-500.0,0.0001972,2]
[349952610,1737534641482,-500.0,0.0001972,2]
[349952611,1737534641492,-500.0,0.0001972,2]
[349952612,1737534641502,-505.78094824,0.0001972,2]
[349952613,1737534641513,-500.0,0.0001972,2]
[349952614,1737534641524,-365.26425311,0.0001972,2]
[349952615,1737534641534,-944.8,0.0001972,2]
[349952616,1737534641545,-501.59707336,0.0001972,2]
[349952617,1737534641555,-500.0,0.0001972,2]
[349952618,1737534641565,-500.0,0.0001972,2]
[349952619,1737534641575,-607.92,0.0001972,2]
[349952620,1737534641585,-500.0,0.0001972,2]
[349952621,1737534641597,-500.0,0.0001972,2]
[349952622,1737534641606,-500.0,0.0001972,2]
[349952623,1737534641616,-500.0,0.0001972,2]
[349952624,1737534641626,-500.0,0.0001972,2]
[349952625,1737534641636,-500.0,0.0001972,2]
[349952626,1737534641648,-647.63168613,0.0001972,2]
[349952627,1737534641659,-500.0,0.0001972,2]
[349952628,1737534641668,-500.0,0.0001972,2]
[349952629,1737534641677,-531.94140268,0.0001972,2]
[349952630,1737534641687,-500.0,0.0001972,2]
[349952631,1737534641696,-500.0,0.0001972,2]
[349952632,1737534641706,-500.0,0.0001972,2]
[349952633,1737534641716,-517.45275328,0.0001972,2]
[349952634,1737534641726,-500.0,0.0001972,2]
[349952635,1737534641735,-500.0,0.0001972,2]
[349952636,1737534641744,-366.50564148,0.0001972,2]
[349952637,1737534641754,-500.0,0.0001972,2]
[349952638,1737534641765,-500.0,0.0001972,2]
[349952639,1737534641774,-500.0,0.0001972,2]
[349952640,1737534641783,-504.27907029,0.0001972,2]
[349952641,1737534641794,-476.50348355,0.0001972,2]
[349952642,1737534641803,-519.00834954,0.0001972,2]
[349952643,1737534641813,-524.01064264,0.0001972,2]
[349952644,1737534641822,-500.0,0.0001972,2]
[349952645,1737534641832,-530.99197898,0.0001972,2]
[349952646,1737534641842,-500.0,0.0001972,2]
[349952647,1737534641851,-515.60052216,0.0001972,2]
[349952648,1737534641862,-500.0,0.0001972,2]
[349952649,1737534641871,-500.0,0.0001972,2]
[349952650,1737534641881,-500.0,0.0001972,2]
[349952651,1737534641890,-500.0,0.0001972,2]
[349952652,1737534641900,-500.0,0.0001972,2]
[349952653,1737534641913,-501.37538983,0.0001972,2]
[349952654,1737534641922,-500.0,0.0001972,2]
[349952655,1737534641932,-500.0,0.0001972,2]
[349952656,1737534641941,-500.0,0.0001972,2]
[349952657,1737534641951,-500.0,0.0001972,2]
[349952658,1737534641960,-500.0,0.0001972,2]
[349952659,1737534641970,-500.0,0.0001972,2]
[349952660,1737534641979,-500.0,0.0001972,2]
[349952661,1737534641989,-520.9,0.0001972,2]
[349952662,1737534641998,-500.0,0.0001972,2]
[349952663,1737534642009,-500.0,0.0001972,2]
[349952664,1737534642019,-500.0,0.0001972,2]
[349952665,1737534642029,-668.54,0.0001972,2]
[349952666,1737534642038,-500.0,0.0001972,2]
[349952667,1737534642047,-233.29664698,0.0001972,2]
[349952668,1737534642056,-2520.05,0.0001972,2]
[349952669,1737534642066,-500.0,0.0001972,2]
[349952670,1737534642075,-2961.88,0.0001972,2]
[349952671,1737534642084,-500.0,0.0001972,2]
[349952672,1737534642094,-905.46,0.0001972,2]
[349952673,1737534642104,-5597.14,0.0001972,2]
[349952674,1737534642113,-500.0,0.0001972,2]
[349952675,1737534642122,-500.0,0.0001972,2]
[349952676,1737534642131,-9273.24,0.0001972,2]
[349952677,1737534642141,-507.9647397,0.0001972,2]
[349952678,1737534642151,-500.0,0.0001972,2]
[349952679,1737534642163,-500.0,0.0001972,2]
[349952680,1737534642172,-1227.0,0.0001972,2]
[349952681,1737534642181,-500.0,0.0001972,2]
[349952682,1737534642190,-695.5,0.0001972,2]
[349952683,1737534642200,-923.7,0.0001972,2]
[349952684,1737534642209,-500.0,0.0001972,2]
[349952685,1737534642218,-3018.93,0.0001972,2]
[349952686,1737534642227,-300.0,0.0001972,2]
[349952687,1737534642236,-500.0,0.0001972,2]
[349952688,1737534642245,-500.0,0.0001972,2]
[349952689,1737534642255,-500.0,0.0001972,2]
[349952690,1737534642264,-500.0,0.0001972,2]
[349952691,1737534642273,-708.43,0.0001972,2]
[349952692,1737534642283,-2798.83,0.0001972,2]
[349952693,1737534642292,-1275.81,0.0001972,2]
[349952694,1737534642301,-952.33,0.0001972,2]
[349952695,1737534642310,-511.38705115,0.0001972,2]
[349952696,1737534642320,-500.0,0.0001972,2]
[349952697,1737534642329,-500.0,0.0001972,2]
[349952698,1737534642339,-679.69,0.0001972,2]
[349952699,1737534642348,-1367.21,0.0001972,2]
[349952700,1737534642358,-1822.07,0.0001972,2]
[349952701,1737534642367,-500.0,0.0001972,2]
[349952702,1737534642377,-500.0,0.0001972,2]
[349952703,1737534642386,-579.19,0.0001972,2]
[349952704,1737534642395,-1523.71,0.0001972,2]
[349952705,1737534642404,-1989.41,0.0001972,2]
[349952706,1737534642415,-500.0,0.0001972,2]
[349952707,1737534642424,-1111.48,0.0001972,2]
[349952708,1737534642434,-500.0,0.0001972,2]
[349952709,1737534642443,-500.0,0.0001972,2]
[349952710,1737534642453,-585.36,0.0001972,2]
[349952711,1737534642462,-500.0,0.0001972,2]
[349952712,1737534642472,-500.0,0.0001972,2]
[349952713,1737534642481,-500.0,0.0001972,2]
[349952714,1737534642491,-969.23,0.0001972,2]
[349952715,1737534642501,-500.0,0.0001972,2]
[349952716,1737534642511,-1176.75,0.0001972,2]
[349952717,1737534642523,-2321.67,0.0001972,2]
[349952718,1737534642532,-1016.17,0.0001972,2]
[349952719,1737534642541,-500.0,0.0001972,2]
[349952720,1737534642551,-651.97,0.0001972,2]
[349952721,1737534642560,-890.17,0.0001972,2]
[349952722,1737534642569,-1287.3,0.0001972,2]
[349952723,1737534642578,-500.0,0.0001972,2]
[349952724,1737534642588,-500.0,0.0001972,2]
[349952725,1737534642598,-500.0,0.0001972,2]
[349952726,1737534642607,-500.0,0.0001972,2]
[349952727,1737534642767,-500.0,0.0001972,2]
[349952728,1737534642780,-500.0,0.0001972,2]
[349952729,1737534642790,-2276.36,0.0001972,2]
[349952730,1737534642801,-2974.96,0.0001972,2]
[349952731,1737534642813,-510.7,0.0001972,2]
[349952732,1737534642823,-500.0,0.0001972,2]
[349952733,1737534642835,-647.81,0.0001972,2]
[349952734,1737534642846,-500.0,0.0001972,2]
[349952735,1737534642857,-500.0,0.0001972,2]
[349952736,1737534642868,-894.7,0.0001972,2]
[349952737,1737534642879,-2510.85,0.0001972,2]
[349952738,1737534642889,-934.57,0.0001972,2]
[349952739,1737534642900,-500.0,0.0001972,2]
[349952740,1737534642914,-500.0,0.0001972,2]
[349952741,1737534642924,-500.0,0.0001972,2]
[349952743,1737534642933,-151.0,0.0001972,2]
[349952746,1737534642942,-1575.38,0.0001972,2]
[349952747,1737534642952,-500.0,0.0001972,2]
[349952750,1737534642962,-500.0,0.0001972,2]
[349952753,1737534642971,-3008.08,0.0001972,2]
[349952755,1737534642981,-505.51609333,0.0001972,2]
[349952757,1737534642990,-500.0,0.0001972,2]
[349952759,1737534643000,-500.0,0.0001972,2]
[349952761,1737534643010,-151.0,0.0001972,2]
[349952762,1737534643020,-713.84,0.0001972,2]
[349952763,1737534643030,-279.16344139,0.0001972,2]
[349952764,1737534643041,-500.0,0.0001972,2]
[349952765,1737534643050,-696.86,0.0001972,2]
[349952766,1737534643060,-500.0,0.0001972,2]
[349952767,1737534643069,-500.0,0.0001972,2]
[349952768,1737534643079,-500.0,0.0001972,2]
[349952769,1737534643089,-614.95,0.0001972,2]
[349952770,1737534643099,-500.0,0.0001972,2]
[349952771,1737534643110,-2476.15,0.0001972,2]
[349952772,1737534643120,-500.0,0.0001972,2]
[349952773,1737534643130,-500.0,0.0001972,2]
[349952774,1737534643140,-515.75,0.0001972,2]
[349952775,1737534643149,-500.0,0.0001972,2]
[349952776,1737534643161,-500.0,0.0001972,2]
[349952777,1737534643170,-151.0,0.0001972,2]
[349952778,1737534643180,-500.0,0.0001972,2]
[349952779,1737534643189,-500.0,0.0001972,2]
[349952780,1737534643199,-500.0,0.0001972,2]
[349952781,1737534643208,-500.0,0.0001972,2]
[349952782,1737534643218,-503.10594851,0.0001972,2]
[349952783,1737534643228,-500.0,0.0001972,2]
[349952784,1737534643237,-500.0,0.0001972,2]
[349952785,1737534643247,-589.48,0.0001972,2]
[349952786,1737534643257,-500.0,0.0001972,2]
[349952787,1737534643266,-4017.44,0.0001972,2]
[349952788,1737534643275,-2425.39,0.0001972,2]
[349952789,1737534643284,-500.0,0.00019721,2]
[349952790,1737534643294,-775.02,0.00019721,2]
[349952791,1737534643303,-500.0,0.00019721,2]
[349952792,1737534643312,-947.67,0.00019721,2]
[349952793,1737534643322,-1037.53,0.00019721,2]
[349952794,1737534643331,-500.0,0.00019721,2]
[349952795,1737534643341,-215.49375892,0.00019721,2]
[349952796,1737534643350,-700.29,0.00019721,2]
[349952797,1737534643360,-636.14,0.00019721,2]
[349952798,1737534643370,-576.43,0.00019721,2]
[349952799,1737534643380,-500.0,0.00019721,2]
[349952800,1737534643390,-500.0,0.00019721,2]
[349952801,1737534643399,-500.0,0.00019721,2]
[349952802,1737534643410,-500.0,0.00019721,2]
[349952803,1737534643420,-564.75,0.00019721,2]
[349952804,1737534643430,-500.0,0.00019721,2]
[349952805,1737534643440,-500.0,0.00019721,2]
[349952806,1737534643451,-500.0,0.00019721,2]
[349952807,1737534643461,-500.0,0.00019721,2]
[349952808,1737534643470,-550.57,0.00019721,2]
[349952809,1737534643480,-991.83,0.00019721,2]
[349952810,1737534643489,-1008.4,0.00019721,2]
[349952811,1737534643499,-500.0,0.00019721,2]
[349952812,1737534643509,-500.0,0.00019721,2]
[349952813,1737534643519,-500.0,0.00019721,2]
[349952814,1737534643528,-500.0,0.00019721,2]
[349952815,1737534643538,-500.0,0.00019721,2]
[349952816,1737534643547,-500.0,0.00019721,2]
[349952817,1737534643558,-500.0,0.00019721,2]
[349952818,1737534643567,-500.0,0.00019721,2]
[349952819,1737534643576,-694.5,0.00019721,2]
[349952820,1737534643585,-1202.02,0.00019721,2]
[349952821,1737534643595,-1070.48,0.00019721,2]
[349952822,1737534643605,-932.56,0.00019721,2]
[349952823,1737534643614,-560.85,0.00019721,2]
[349952824,1737534643624,-706.83,0.00019721,2]
[349952825,1737534643633,-500.0,0.00019721,2]
[349952826,1737534643642,-1361.57,0.00019721,2]
[349952827,1737534643651,-644.06,0.00019721,2]
[349952828,1737534643662,-624.83,0.00019721,2]
[349952829,1737534643672,-796.67,0.00019721,2]
[349952830,1737534643681,-500.0,0.00019721,2]
[349952831,1737534643690,-1438.162394,0.00019721,2]
[349952832,1737534643699,-500.0,0.00019721,2]
[349952833,1737534643709,-1377.23,0.00019721,2]
[349952834,1737534643719,-1229.49,0.00019721,2]
[349952835,1737534643728,-880.9,0.00019721,2]
[349952836,1737534643737,-500.0,0.00019721,2]
[349952837,1737534643746,-500.0,0.00019721,2]
[349952838,1737534643755,-500.0,0.00019721,2]
[349952839,1737534643764,-1013.44,0.00019721,2]
[349952840,1737534643773,-950.86,0.00019721,2]
[349952841,1737534643782,-500.0,0.00019721,2]
[349952842,1737534643791,-677.67,0.00019721,2]
[349952843,1737534643800,-948.099067,0.00019721,2]
[349952844,1737534643810,-1398.08,0.00019721,2]
[349952845,1737534643819,-500.0,0.00019721,2]
[349952846,1737534643828,-916.72,0.00019721,2]
[349952847,1737534643837,-1072.95,0.00019721,2]
[349952848,1737534643846,-500.0,0.00019721,2]
[349952849,1737534643856,-532.81025972,0.00019721,2]
[349952850,1737534643865,-1526.48,0.00019721,2]
[349952851,1737534643874,-698.84,0.00019721,2]
[349952852,1737534643885,-500.0,0.00019721,2]
[349952853,1737534643894,-500.0,0.00019721,2]
[349952854,1737534643903,-615.72,0.00019721,2]
[349952855,1737534643915,-500.0,0.00019721,2]
[349952856,1737534643924,-500.0,0.00019721,2]
[349952857,1737534643933,-1074.97,0.00019721,2]
[349952858,1737534643942,-500.0,0.00019721,2]
[349952859,1737534643952,-500.0,0.00019721,2]
[349952860,1737534643962,-500.0,0.00019721,2]
[349952861,1737534643971,-500.0,0.00019721,2]
[349952862,1737534643980,-500.0,0.00019721,2]
[349952863,1737534643990,-603.53,0.00019721,2]
[349952864,1737534643999,-500.0,0.00019721,2]
[349952865,1737534644008,-1670.42,0.00019721,2]
[349952866,1737534644017,-500.0,0.00019721,2]
[349952867,1737534644027,-500.0,0.00019721,2]
[349952868,1737534644036,-500.0,0.00019721,2]
[349952869,1737534644045,-500.0,0.00019721,2]
[349952870,1737534644055,-1037.24,0.00019721,2]
[349952871,1737534644064,-1018.24,0.00019721,2]
[349952872,1737534644074,-500.0,0.00019721,2]
[349952873,1737534644083,-500.0,0.00019721,2]
[349952874,1737534644092,-500.0,0.00019721,2]
[349952875,1737534644101,-500.0,0.00019721,2]
[349952876,1737534644111,-151.0,0.00019721,2]
[349952877,1737534644119,-500.0,0.00019721,2]
[349952878,1737534644129,-895.81,0.00019721,2]
[349952879,1737534644138,-1128.14,0.00019721,2]
[349952880,1737534644147,-1063.29,0.00019721,2]
[349952881,1737534644157,-500.0,0.00019721,2]
[349952882,1737534644167,-500.0,0.00019721,2]
[349952883,1737534644176,-1229.9,0.00019721,2]
[349952884,1737534644185,-500.0,0.00019721,2]
[349952885,1737534644194,-910.85,0.00019721,2]
[349952886,1737534644203,-713.75,0.00019721,2]
[349952887,1737534644212,-151.0,0.00019721,2]
[349952888,1737534644223,-976.93,0.00019721,2]
[349952889,1737534644231,-500.0,0.00019721,2]
[349952890,1737534644241,-500.0,0.00019721,2]
[349952891,1737534644251,-500.0,0.00019721,2]
[349952892,1737534644261,-1056.04,0.00019721,2]
[349952893,1737534644270,-500.0,0.00019721,2]
[349952894,1737534644279,-500.0,0.00019721,2]
[349952895,1737534644289,-880.91,0.00019721,2]
[349952896,1737534644298,-500.0,0.00019721,2]
[349952897,1737534644307,-500.0,0.00019721,2]
[349952898,1737534644317,-542.64,0.00019721,2]
[349952899,1737534644326,-620.06,0.00019721,2]
[349952900,1737534644335,-1345.98,0.00019721,2]
[349952901,1737534644345,-940.54,0.00019721,2]
[349952902,1737534644355,-1177.26,0.00019721,2]
[349952903,1737534644365,-151.0,0.00019721,2]
[349952904,1737534644375,-1602.21,0.00019721,2]
[349952905,1737534644384,-500.0,0.00019721,2]
[349952906,1737534644393,-500.0,0.00019721,2]
[349952907,1737534644403,-650.05,0.00019721,2]
[349952908,1737534644413,-2865.39,0.00019721,2]
[349952909,1737534644422,-500.0,0.00019721,2]
[349952910,1737534644432,-1460.66,0.00019721,2]
[349952911,1737534644442,-903.86,0.00019721,2]
[349952912,1737534644451,-910.11,0.00019721,2]
[349952913,1737534644461,-1447.14,0.00019721,2]
[349952914,1737534644471,-2028.26,0.00019721,2]
[349952915,1737534644480,-2040.82,0.00019721,2]
[349952916,1737534644490,-710.66,0.00019721,2]
[349952917,1737534644499,-1247.1,0.00019721,2]
[349952918,1737534644510,-500.0,0.00019721,2]
[349952919,1737534644521,-1194.86,0.00019721,2]
[349952920,1737534644531,-999.9,0.00019721,2]
[349952921,1737534644540,-500.0,0.00019721,2]
[349952922,1737534644551,-1111.37,0.00019721,2]
[349952923,1737534644560,-2552.95,0.00019721,2]
[349952924,1737534644570,-500.0,0.00019721,2]
[349952925,1737534644579,-500.0,0.00019721,2]
[349952926,1737534644590,-1490.37,0.00019721,2]
[349952927,1737534644600,-1149.55,0.00019721,2]
[349952928,1737534644609,-500.0,0.00019721,2]
[349952929,1737534644619,-500.0,0.00019721,2]
[349952930,1737534644630,-5785.18,0.00019721,2]
[349952931,1737534644642,-634.52,0.00019721,2]
[349952932,1737534644652,-956.77,0.00019721,2]
[349952933,1737534644664,-1268.92,0.00019721,2]
[349952934,1737534644673,-2423.9,0.00019721,2]
[349952935,1737534644683,-500.0,0.00019721,2]
[349952936,1737534644693,-2326.11,0.00019721,2]
[349952937,1737534644704,-775.29,0.00019721,2]
[349952938,1737534644715,-966.49,0.00019721,2]
[349952939,1737534644724,-500.0,0.00019721,2]
[349952940,1737534644734,-3638.14,0.00019721,2]
[349952941,1737534644743,-614.54,0.00019721,2]
[349952942,1737534644753,-152.928724,0.00019721,2]
[349952943,1737534644763,-657.7,0.00019721,2]
[349952944,1737534644775,-3328.69,0.00019721,2]
[349952945,1737534644785,-5075.84,0.00019721,2]
[349952946,1737534644794,-1598.91,0.00019721,2]
[349952947,1737534644803,-1452.67,0.00019721,2]
[349952948,1737534644813,-500.0,0.00019721,2]
[349952949,1737534644822,-914.4,0.00019721,2]
[349952950,1737534644831,-2138.98,0.00019721,2]
[349952951,1737534644840,-500.0,0.00019721,2]